bitfinex/quotes_ETHUSD_20241004
["timestamp","ask_amount","ask_price","bid_price","bid_amount"]
[1728004533542,4.25297,2351.3,2351.0,0.794]
[1728004533715,8.50578,2351.4,2351.0,0.794]
[1728004534131,4.25289,2351.4,2351.0,0.794]
[1728004534896,8.50585,2351.4,2351.0,0.794]
[1728004535504,8.50581,2351.4,2351.0,0.794]
[1728004535708,8.50578,2351.4,2351.0,0.794]
[1728004536435,4.25289,2351.4,2351.0,0.794]
[1728004536839,4.25289,2351.4,2351.0,3.794]
[1728004537049,4.25289,2351.4,2351.0,0.794]
[1728004540309,4.25254,2351.6,2351.0,6.277628]
[1728004540636,0.44509183,2352.1,2351.4,4.25263]
[1728004540637,4.25182,2352.0,2351.4,4.25263]
[1728004540823,4.25182,2352.0,2351.5,5.00347]
[1728004541041,0.44509183,2352.1,2351.5,0.751]
[1728004541352,4.25173,2352.0,2351.5,1.251363]
[1728004541935,4.25147,2352.2,2351.6,4.25233]
[1728004542137,4.25147,2352.2,2351.5,5.503843]
[1728004542309,4.25153,2352.1,2351.5,9.756323]
[1728004542513,4.25147,2352.2,2351.6,5.2280423]
[1728004542754,8.50292,2352.2,2351.6,5.2280423]
[1728004542918,8.50292,2352.2,2351.7,0.751]
[1728004543117,4.25164,2352.1,2351.7,0.751]
[1728004543347,4.25145,2352.2,2351.7,0.751]
[1728004543568,4.25109,2352.4,2351.7,5.95116753]
[1728004543867,4.25109,2352.4,2351.8,0.751]
[1728004543868,4.25126,2352.3,2351.8,0.751]
[1728004544222,4.25109,2352.4,2351.8,5.08808273]
[1728004544539,1.24668862,2352.5,2352.0,4.25157]
[1728004544540,0.44508862,2352.5,2352.0,4.25157]
[1728004544851,4.25074,2352.6,2352.1,0.83602253]
[1728004545419,4.25048,2352.7,2352.1,0.83602253]
[1728004545658,4.25048,2352.7,2352.2,0.751]
[1728004545952,4.25037,2352.8,2352.3,0.751]
[1728004546154,4.25037,2352.8,2352.3,3.83601748]
[1728004546453,4.25037,2352.8,2352.4,0.751]
[1728004547260,8.50075,2352.8,2352.4,0.751]
[1728004547424,4.25037,2352.8,2352.4,0.751]
[1728004547639,8.50075,2352.8,2352.4,0.751]
[1728004547839,4.25037,2352.8,2352.4,0.751]
[1728004548263,4.25061,2352.6,2352.4,0.751]
[1728004548558,5.100336,2352.8,2352.4,0.751]
[1728004548559,4.2503,2352.8,2352.4,0.751]
[1728004548984,4.25061,2352.6,2352.4,0.751]
[1728004549468,4.2503,2352.8,2352.4,0.751]
[1728004549965,8.50067,2352.8,2352.4,0.751]
[1728004550185,4.2503,2352.8,2352.4,0.751]
[1728004550841,4.25047,2352.7,2352.4,0.751]
[1728004551232,4.2503,2352.8,2352.4,0.751]
[1728004551233,4.24992,2353.0,2352.5,0.7684]
[1728004552271,4.25011,2352.9,2352.5,0.7684]
[1728004554042,4.25011,2352.9,2352.5,0.4263]
[1728004554278,4.25011,2352.9,2352.6,0.7684]
[1728004554571,4.24992,2353.0,2352.6,0.7684]
[1728004555147,4.25008,2352.9,2352.6,0.7684]
[1728004555474,4.24992,2353.0,2352.6,0.7684]
[1728004556967,4.24992,2353.0,2352.6,1.67148998]
[1728004557465,4.24992,2353.0,2352.6,1.75649239]
[1728004557667,4.24992,2353.0,2352.7,0.7684]
[1728004557868,4.24955,2353.2,2352.7,0.7684]
[1728004558399,8.1377,2353.5,2352.9,4.25005]
[1728004558686,8.1377,2353.5,2353.1,0.7684]
[1728004558687,4.24908,2353.5,2353.1,0.7684]
[1728004559283,4.24896,2353.6,2353.1,0.85338577]
[1728004559585,8.49788,2353.6,2353.1,0.85338577]
[1728004559945,4.24899,2353.5,2353.1,0.85338577]
[1728004560147,4.24899,2353.5,2353.2,0.59630507]
[1728004560765,4.24892,2353.6,2353.2,0.59630507]
[1728004561271,4.24917,2353.4,2353.0,0.7684]
[1728004561472,4.24892,2353.6,2353.1,0.08499189]
[1728004561791,4.24892,2353.6,2353.2,0.7684]
[1728004563187,4.249,2353.5,2353.2,0.7684]
[1728004563500,4.24892,2353.6,2353.2,0.7684]
[1728004563869,8.49785,2353.6,2353.3,0.544436]
[1728004564054,4.24892,2353.6,2353.3,0.544436]
[1728004565664,4.24853,2353.8,2353.3,0.544436]
[1728004565865,4.24853,2353.8,2353.4,0.8077]
[1728004567157,0.1178821,2354.0,2353.5,0.8077]
[1728004567582,0.1178821,2354.0,2353.7,4.2486]
[1728004567783,0.1178821,2354.0,2353.9,0.8077]
[1728004570706,4.3659621,2354.0,2353.9,0.8077]
[1728004571002,4.24837,2353.9,2353.5,0.8077]
[1728004571231,4.24881,2353.6,2353.2,0.8077]
[1728004571364,4.24915,2353.5,2353.2,0.8077]
[1728004572063,8.49831,2353.5,2353.2,0.8077]
[1728004572262,4.24915,2353.5,2353.2,0.8077]
[1728004573026,8.49826,2353.5,2353.2,0.8077]
[1728004573175,4.24931,2353.4,2353.2,0.8077]
[1728004573516,4.24965,2353.2,2353.0,0.8077]
[1728004574014,4.24929,2353.4,2353.0,0.8077]
[1728004575179,4.24929,2353.4,2353.1,0.505777]
[1728004575983,8.49857,2353.4,2353.1,0.505777]
[1728004576181,4.24928,2353.4,2353.0,0.8077]
[1728004576385,5.003,2353.6,2353.0,1.31898929]
[1728004576582,4.24919,2353.4,2353.0,1.234]
[1728004576796,8.49848,2353.4,2353.0,1.234]
[1728004576993,4.24919,2353.4,2353.0,1.234]
[1728004578421,4.24919,2353.4,2353.0,2.082423]
[1728004578736,4.24888,2353.6,2353.0,2.082423]
[1728004578917,4.24901,2353.5,2353.0,2.082423]
[1728004579095,4.24888,2353.6,2353.0,2.082423]
[1728004579518,4.24903,2353.5,2353.0,2.082423]
[1728004580623,0.7811,2353.5,2353.0,1.234]
[1728004580922,4.2492,2353.4,2353.0,1.234]
[1728004581132,8.49849,2353.4,2353.0,1.234]
[1728004581423,4.2492,2353.4,2353.0,1.234]
[1728004582795,8.49853,2353.4,2353.0,1.234]
[1728004583192,4.2492,2353.4,2353.0,1.234]
[1728004583970,8.49849,2353.4,2353.0,1.234]
[1728004584135,4.2492,2353.4,2353.0,1.234]
[1728004584437,0.7811,2353.5,2353.0,1.234]
[1728004584593,0.7811,2353.5,2353.0,1.782391]
[1728004584594,5.03009,2353.5,2353.0,1.782391]
[1728004585602,0.7811,2353.5,2353.0,1.782391]
[1728004585796,4.24919,2353.4,2353.0,1.782391]
[1728004585997,4.24919,2353.4,2353.0,1.234]
[1728004586707,0.7811,2353.5,2353.0,1.234]
[1728004586909,8.49789,2353.6,2353.0,1.234]
[1728004587120,8.49789,2353.6,2353.0,5.48386]
[1728004587435,8.49789,2353.6,2353.0,6.46573615]
[1728004587643,4.24899,2353.5,2353.0,6.46573615]
[1728004588048,4.24891,2353.6,2353.0,6.46573615]
[1728004588349,0.99930621,2354.0,2353.4,4.24904]
[1728004588350,4.81092,2354.0,2353.4,4.24904]
[1728004588531,0.1178821,2354.0,2353.5,1.235704]
[1728004588738,4.3660721,2354.0,2353.6,0.4263]
[1728004590229,0.1178821,2354.0,2353.6,0.4263]
[1728004590416,0.1178821,2354.0,2353.6,5.35523199]
[1728004590622,0.1178821,2354.0,2353.6,9.60394199]
[1728004590815,0.1178821,2354.0,2353.6,5.35514199]
[1728004591220,0.1178821,2354.0,2353.6,1.10643199]
[1728004592253,0.7811,2353.9,2353.5,1.235704]
[1728004592409,4.2489,2353.6,2353.3,3.8108]
[1728004592608,4.24904,2353.5,2353.3,0.8108]
[1728004593311,5.0302,2353.5,2353.0,1.79267615]
[1728004593554,4.2492,2353.4,2353.0,1.79267615]
[1728004594857,9.27935,2353.5,2353.0,1.79267615]
[1728004595063,4.2491,2353.5,2353.1,0.31092521]
[1728004595283,4.2492,2353.4,2353.1,0.31092521]
[1728004595429,4.2492,2353.4,2353.0,1.79267615]
[1728004596352,4.2491,2353.5,2353.0,1.79267615]
[1728004596550,4.24873,2353.7,2353.2,0.8108]
[1728004596767,4.24873,2353.7,2353.3,0.54867]
[1728004596967,4.24873,2353.7,2353.2,0.8108]
[1728004597330,4.24839,2353.9,2353.5,0.7754]
[1728004597532,4.24849,2353.8,2353.5,0.7754]
[1728004597869,4.24864,2353.7,2353.4,0.4263]
[1728004598068,5.098343,2353.7,2353.4,0.4263]
[1728004598228,4.24899,2353.5,2353.3,0.7754]
[1728004599526,4.24899,2353.5,2353.1,3.4263]
[1728004599752,4.24899,2353.5,2353.1,4.2017]
[1728004600362,4.24917,2353.4,2353.1,1.2017]
[1728004600668,4.24899,2353.5,2353.1,1.2017]
[1728004601174,4.24899,2353.5,2353.1,1.8827316]
[1728004601372,4.24867,2353.7,2353.1,4.8827316]
[1728004601533,4.24867,2353.7,2353.1,5.77300754]
[1728004602067,4.24881,2353.6,2353.1,5.77300754]
[1728004602276,4.24893,2353.6,2353.1,5.77300754]
[1728004602428,4.24908,2353.5,2353.1,4.66567594]
[1728004602632,5.04778,2353.5,2353.1,0.7754]
[1728004602869,4.24937,2353.3,2353.1,0.7754]
[1728004603327,5.04778,2353.5,2353.1,0.7754]
[1728004603731,4.24917,2353.4,2353.1,0.7754]
[1728004604557,5.04778,2353.5,2353.1,0.7754]
[1728004604869,5.04741,2353.7,2353.1,0.7754]
[1728004605039,4.24884,2353.6,2353.1,5.09197594]
[1728004607162,4.24901,2353.5,2353.1,5.09197594]
[1728004608238,4.24901,2353.5,2353.1,6.33770956]
[1728004609586,5.04741,2353.7,2353.1,6.4227013]
[1728004609748,4.24834,2353.9,2353.3,5.50453]
[1728004610563,4.24834,2353.9,2353.3,1.2552]
[1728004610776,4.24847,2353.8,2353.3,2.45278825]
[1728004610976,0.1178821,2354.0,2353.3,0.8289]
[1728004611180,0.1178821,2354.0,2353.1,4.71917594]
[1728004611181,4.24931,2353.4,2353.1,4.71917594]
[1728004611487,4.24953,2353.2,2353.1,0.8289]
[1728004612050,4.24931,2353.4,2353.1,0.8289]
[1728004612578,8.49862,2353.4,2353.1,0.8289]
[1728004612780,4.24931,2353.4,2353.1,0.8289]
[1728004613358,5.02263,2353.6,2353.2,0.4263]
[1728004613359,4.24893,2353.6,2353.2,0.4263]
[1728004613555,5.02224,2353.8,2353.3,1.2552]
[1728004613556,4.24854,2353.8,2353.3,1.2552]
[1728004614191,4.24854,2353.8,2353.3,2.14547594]
[1728004614751,8.49711,2353.8,2353.3,2.14547594]
[1728004614956,4.24865,2353.7,2353.3,2.14547594]
[1728004615188,4.24865,2353.7,2353.4,0.34807289]
[1728004615755,4.24881,2353.6,2353.4,0.34807289]
[1728004615963,5.02251,2353.6,2353.3,0.89027594]
[1728004616270,4.24917,2353.4,2353.2,0.89027594]
[1728004617600,4.24917,2353.4,2353.2,1.41638256]
[1728004617832,4.24902,2353.5,2353.2,1.41638256]
[1728004618110,4.2485,2353.8,2353.3,1.31657594]
[1728004618308,4.2485,2353.8,2353.4,2.46326949]
[1728004619410,4.24863,2353.7,2353.4,2.46326949]
[1728004619602,4.24863,2353.7,2353.4,1.57299355]
[1728004620315,4.24863,2353.7,2353.4,2.46326949]
[1728004620675,4.24863,2353.7,2353.4,1.57299355]
[1728004621322,4.2485,2353.8,2353.4,2.46326949]
[1728004621473,4.24862,2353.7,2353.5,0.25482477]
[1728004621668,0.8915821,2354.0,2353.3,0.89027594]
[1728004621913,0.8915821,2354.0,2353.2,1.71917594]
[1728004622205,4.24935,2353.3,2353.2,0.8289]
[1728004622511,4.24971,2353.1,2353.0,0.89027594]
[1728004622685,4.2493,2353.4,2353.0,2.11975256]
[1728004623017,4.24893,2353.6,2353.1,1.71917594]
[1728004623306,4.24893,2353.6,2353.3,0.8289]
[1728004623508,4.24845,2353.8,2353.3,0.8289]
[1728004623731,4.24869,2353.7,2353.3,1.2552]
[1728004623905,4.24869,2353.7,2353.3,2.03672813]
[1728004624077,4.24882,2353.6,2353.3,2.03672813]
[1728004624273,4.24882,2353.6,2353.3,2.92700407]
[1728004624585,4.24882,2353.6,2353.3,2.03672813]
[1728004624802,4.24882,2353.6,2353.3,2.14547594]
[1728004624803,4.249,2353.5,2353.3,2.14547594]
[1728004625108,4.249,2353.5,2353.3,1.2552]
[1728004625325,4.24882,2353.6,2353.3,1.2552]
[1728004625506,4.249,2353.5,2353.3,1.2552]
[1728004626518,4.24917,2353.4,2353.3,0.8289]
[1728004626686,4.2492,2353.4,2353.1,1.70937594]
[1728004626870,8.49847,2353.4,2353.1,1.70937594]
[1728004627074,4.2492,2353.4,2353.1,0.8191]
[1728004627280,4.2492,2353.4,2353.1,2.43884283]
[1728004627781,4.25711474,2353.6,2353.1,2.43884283]
[1728004628015,8.50609474,2353.6,2353.1,2.43884283]
[1728004628180,4.24906,2353.5,2353.1,2.43884283]
[1728004628373,4.24918,2353.4,2353.2,1.26768552]
[1728004628599,4.24918,2353.4,2353.2,0.37740958]
[1728004629137,4.25745474,2353.4,2353.2,0.37740958]
[1728004629293,4.24918,2353.4,2353.2,0.37740958]
[1728004630423,4.24884,2353.6,2353.2,0.37740958]
[1728004630633,4.24917,2353.4,2353.1,1.70937594]
[1728004631426,4.24867,2353.7,2353.2,6.38518594]
[1728004631637,5.1718921,2354.0,2353.4,0.8191]
[1728004631795,5.1718921,2354.0,2353.4,2.13567594]
[1728004632198,4.3660921,2354.0,2353.5,4.24897]
[1728004632541,4.3660921,2354.0,2353.7,0.8191]
[1728004632542,0.1178821,2354.0,2353.7,0.8191]
[1728004632697,0.1178821,2354.0,2353.9,5.06736]
[1728004632915,0.1178821,2354.0,2353.9,9.04258635]
[1728004633160,0.1178821,2354.0,2353.9,6.39246237]
[1728004633451,0.1178821,2354.0,2353.9,5.50239166]
[1728004635953,0.1178821,2354.0,2353.9,0.8191]
[1728004636311,0.1178821,2354.0,2353.7,0.89007071]
[1728004636312,0.1178821,2354.0,2353.7,0.8191]
[1728004638022,4.3659721,2354.0,2353.7,0.8191]
[1728004638924,0.1178821,2354.0,2353.7,0.8191]
[1728004639554,0.1178821,2354.0,2353.7,5.95769071]
[1728004639722,0.1178821,2354.0,2353.8,1.49679537]
[1728004642260,0.1178821,2354.0,2353.6,3.89007071]
[1728004642261,4.3659921,2354.0,2353.6,3.89007071]
[1728004642557,4.24847,2353.8,2353.4,0.8191]
[1728004642759,4.24863,2353.7,2353.4,0.8191]
[1728004643460,4.24912,2353.5,2353.2,0.89007071]
[1728004643656,0.8058,2353.5,2353.0,7.29418369]
[1728004643959,0.8058,2353.5,2353.0,5.95893071]
[1728004644462,0.8058,2353.5,2353.1,1.15571837]
[1728004645637,0.8058,2353.5,2353.1,0.72941837]
[1728004645823,4.24921,2353.4,2353.0,0.8191]
[1728004646981,4.24937,2353.3,2352.9,1.31637071]
[1728004647256,4.24921,2353.4,2352.9,0.4263]
[1728004647419,8.4985,2353.4,2352.9,0.4263]
[1728004647628,4.24921,2353.4,2352.9,0.4263]
[1728004648171,4.24921,2353.4,2352.9,5.21352002]
[1728004648372,4.24921,2353.4,2352.9,0.96348002]
[1728004649085,4.24921,2353.4,2352.9,0.4263]
[1728004649286,5.05525,2353.3,2352.9,0.4263]
[1728004649644,0.8058,2353.3,2352.9,0.4263]
[1728004650046,5.05517,2353.3,2352.9,0.4263]
[1728004650441,4.24953,2353.2,2352.9,0.4263]
[1728004650660,0.8058,2353.3,2352.9,0.4263]
[1728004651346,0.8058,2353.3,2352.9,2.11087107]
[1728004652056,5.05517,2353.3,2352.9,2.11087107]
[1728004655769,5.05517,2353.3,2352.6,5.58575298]
[1728004655770,4.25003,2353.0,2352.6,4.68147071]
[1728004655963,4.24971,2353.1,2352.6,0.7914]
[1728004655964,8.49953,2353.1,2352.6,0.7914]
[1728004656204,4.24992,2353.0,2352.6,0.7914]
[1728004656408,4.24992,2353.0,2352.6,2.24322437]
[1728004656768,4.24992,2353.0,2352.6,2.66952437]
[1728004656968,4.24971,2353.1,2352.6,6.92013437]
[1728004657207,4.25007,2353.0,2352.6,2.66952437]
[1728004657523,0.8164,2352.9,2352.6,1.87812437]
[1728004659019,0.8164,2352.9,2352.6,0.4263]
[1728004660427,0.8164,2352.9,2352.5,0.4263]
[1728004660585,0.8164,2352.9,2352.5,4.67701]
[1728004661623,0.8164,2352.9,2352.5,0.4263]
[1728004661800,0.8164,2352.9,2352.5,4.67705]
[1728004662127,5.06611,2353.1,2352.6,4.2506]
[1728004662300,9.31593,2353.1,2352.6,4.2506]
[1728004662958,5.06611,2353.1,2352.6,4.2506]
[1728004663100,9.31593,2353.1,2352.6,4.2506]
[1728004664601,9.31593,2353.1,2352.5,1.48723407]
[1728004665038,5.06583,2353.3,2352.7,0.7914]
[1728004665197,4.24971,2353.1,2352.7,1.2177]
[1728004665638,8.4996,2353.1,2352.7,1.2177]
[1728004665842,4.24992,2353.0,2352.7,1.2177]
[1728004666008,4.24992,2353.0,2352.7,0.7914]
[1728004666206,4.25008,2352.9,2352.7,0.7914]
[1728004666736,4.25008,2352.9,2352.5,0.4263]
[1728004666945,4.25041,2352.8,2352.4,3.7914]
[1728004667103,4.25045,2352.7,2352.4,0.7914]
[1728004669737,9.31671,2352.9,2352.4,0.7914]
[1728004669900,4.2503,2352.8,2352.4,0.7914]
[1728004671467,5.06648,2352.9,2352.4,1.638284]
[1728004671622,4.25008,2352.9,2352.4,5.889204]
[1728004672048,4.25008,2352.9,2352.4,1.638284]
[1728004672567,8.50031,2352.9,2352.4,1.638284]
[1728004672772,8.50028,2352.9,2352.4,1.638284]
[1728004673852,4.25008,2352.9,2352.4,1.638284]
[1728004674044,4.25027,2352.8,2352.4,1.638284]
[1728004675125,4.25027,2352.8,2352.5,0.6315614]
[1728004675966,8.49964,2353.1,2352.6,0.7608]
[1728004676151,4.24982,2353.1,2352.6,0.84580397]
[1728004676462,8.49962,2353.1,2352.6,1.88723194]
[1728004676624,4.24995,2353.0,2352.6,1.88723194]
[1728004677031,4.25008,2352.9,2352.6,1.88723194]
[1728004677239,4.25008,2352.9,2352.6,1.1871]
[1728004679350,4.24992,2353.0,2352.6,1.1871]
[1728004679564,4.25009,2352.9,2352.6,1.1871]
[1728004679725,4.25036,2352.8,2352.6,0.7608]
[1728004680951,0.8183,2353.0,2352.6,0.7608]
[1728004680952,4.24997,2353.0,2352.6,0.7608]
[1728004681163,11.55912,2353.5,2352.9,4.24992]
[1728004681336,11.55912,2353.5,2353.1,0.7608]
[1728004681337,4.24912,2353.5,2353.1,0.7608]
[1728004681718,4.24912,2353.5,2353.2,0.501059]
[1728004682042,4.24908,2353.5,2353.1,0.7608]
[1728004682251,4.2493,2353.4,2353.1,0.7608]
[1728004683944,4.24908,2353.5,2353.1,0.7608]
[1728004685127,4.24932,2353.4,2353.1,0.7608]
[1728004685363,4.24948,2353.3,2353.1,0.7608]
[1728004686430,4.24891,2353.6,2353.1,0.7608]
[1728004686633,0.00827474,2353.7,2353.2,3.86878738]
[1728004686834,4.3660821,2354.0,2353.2,3.86878738]
[1728004686835,4.3660821,2354.0,2353.5,0.7838]
[1728004687074,4.3660821,2354.0,2353.7,0.7838]
[1728004687075,0.1178821,2354.0,2353.7,0.7838]
[1728004687664,5.1342421,2354.0,2353.4,0.7838]
[1728004687864,4.24856,2353.8,2353.4,0.7838]
[1728004688033,4.24864,2353.7,2353.4,0.7838]
[1728004688359,4.24881,2353.6,2353.2,0.7838]
[1728004688562,4.24899,2353.5,2353.2,0.7838]
[1728004688728,4.24919,2353.4,2353.0,1.67387071]
[1728004688934,4.24919,2353.4,2353.0,0.7838]
[1728004689133,4.24919,2353.4,2353.0,2.29834737]
[1728004689779,4.24919,2353.4,2353.0,5.29834737]
[1728004693391,5.01696,2353.6,2353.2,0.7838]
[1728004693392,4.24886,2353.6,2353.2,0.7838]
[1728004693701,0.1178821,2354.0,2353.6,0.7838]
[1728004693702,8.6143121,2354.0,2353.6,0.7838]
[1728004693851,4.3660521,2354.0,2353.6,0.7838]
[1728004694049,4.87946731,2354.0,2353.6,0.7838]
[1728004694468,4.24841,2353.9,2353.6,0.7838]
[1728004694668,4.87946731,2354.0,2353.6,0.7838]
[1728004695002,4.24845,2353.8,2353.6,0.7838]
[1728004696089,4.3660721,2354.0,2353.6,0.7838]
[1728004696302,0.1178821,2354.0,2353.9,0.7838]
[1728004697007,0.1178821,2354.0,2353.9,1.2101]
[1728004697147,0.1178821,2354.0,2353.9,5.54331809]
[1728004697348,0.1178821,2354.0,2353.9,8.54331809]
[1728004697676,0.1178821,2354.0,2353.9,9.96006818]
[1728004699593,0.1178821,2354.0,2353.9,10.51006818]
[1728004699775,0.1178821,2354.0,2353.9,11.40013889]
[1728004699986,0.1178821,2354.0,2353.9,10.51006818]
[1728004700187,0.1178821,2354.0,2353.9,11.84532116]
[1728004700368,4.24576,2355.3,2354.9,0.7838]
[1728004700696,8.0781,2355.6,2354.9,0.7838]
[1728004700697,4.24611,2355.1,2354.9,0.7838]
[1728004701059,4.24594,2355.2,2354.9,0.7838]
[1728004701981,8.49202,2355.2,2354.9,0.7838]
[1728004702180,4.2457,2355.4,2354.7,0.7838]
[1728004702405,4.24634,2355.0,2354.7,0.7838]
[1728004704552,8.49209,2355.2,2354.7,0.7838]
[1728004704713,4.24621,2355.1,2354.7,0.7838]
[1728004705650,4.24602,2355.2,2354.7,2.055826]
[1728004705850,4.24602,2355.2,2354.7,5.055826]
[1728004706250,4.24612,2355.1,2354.7,2.055826]
[1728004706624,4.24602,2355.2,2354.7,2.055826]
[1728004707548,4.2461,2355.1,2354.7,2.055826]
[1728004708057,4.24602,2355.2,2354.8,0.5055826]
[1728004708244,8.49205,2355.2,2354.8,0.5055826]
[1728004708760,4.2461,2355.1,2354.8,0.5055826]
[1728004708958,4.2461,2355.1,2354.7,0.7838]
[1728004709273,4.24648,2354.9,2354.7,0.7838]
[1728004709552,4.2461,2355.1,2354.7,0.78298996]
[1728004709756,8.49233,2355.1,2354.7,0.78298996]
[1728004710154,4.2463,2355.0,2354.7,0.78298996]
[1728004710316,4.2461,2355.1,2354.7,0.78298996]
[1728004710534,4.2461,2355.1,2354.7,1.62862496]
[1728004711266,8.49173,2355.3,2354.7,1.71355244]
[1728004711914,4.24597,2355.2,2354.7,1.62862496]
[1728004712848,4.24597,2355.2,2354.7,1.71355068]
[1728004713165,4.24597,2355.2,2354.7,1.62862496]
[1728004713758,4.24597,2355.2,2354.7,1.71355066]
[1728004714326,4.24597,2355.2,2354.7,6.38666066]
[1728004714547,4.24583,2355.3,2354.8,0.63866607]
[1728004714720,4.24594,2355.2,2354.9,0.803]
[1728004716666,0.7681,2355.5,2354.9,0.803]
[1728004716667,4.24611,2355.1,2354.9,0.803]
[1728004716880,4.24628,2355.0,2354.6,0.803]
[1728004717164,4.670721,2355.1,2354.6,0.803]
[1728004717165,8.49238,2355.1,2354.6,0.803]
[1728004717330,4.24611,2355.1,2354.6,0.803]
[1728004717939,4.24586,2355.3,2354.7,0.803]
[1728004718149,4.24586,2355.3,2354.8,0.803]
[1728004718363,8.4917,2355.3,2354.8,1.350611]
[1728004719176,4.24584,2355.3,2354.8,1.350611]
[1728004719400,5.03125474,2355.7,2355.2,3.0]
[1728004719609,5.02298,2355.7,2355.1,3.51121308]
[1728004719755,4.24542,2355.5,2355.1,4.36724439]
[1728004719958,4.24542,2355.5,2355.1,0.85603131]
[1728004720471,4.24514,2355.7,2355.2,0.803]
[1728004720669,4.24527,2355.6,2355.2,0.803]
[1728004720888,4.24527,2355.6,2355.2,4.74464144]
[1728004721100,4.24527,2355.6,2355.2,1.74464144]
[1728004722294,4.24514,2355.7,2355.2,1.74464144]
[1728004722487,8.49034,2355.7,2355.2,1.74464144]
[1728004722794,4.24523,2355.6,2355.2,1.74464144]
[1728004723224,8.49032,2355.7,2355.2,1.74464144]
[1728004723520,4.24514,2355.7,2355.2,1.74464144]
[1728004723712,8.49027,2355.7,2355.2,1.74464144]
[1728004724225,4.2454,2355.5,2355.2,0.803]
[1728004724786,8.4903,2355.7,2355.2,0.803]
[1728004724993,4.24524,2355.6,2355.2,0.803]
[1728004725321,4.24539,2355.5,2355.2,0.803]
[1728004726229,4.24574,2355.3,2355.2,0.803]
[1728004726449,4.24594,2355.2,2354.9,0.803]
[1728004726589,4.24558,2355.4,2354.9,0.803]
[1728004726791,4.24532,2355.6,2355.1,0.803]
[1728004728206,4.2454,2355.5,2355.1,0.803]
[1728004728593,4.2454,2355.5,2355.1,1.732547]
[1728004728798,4.24566,2355.4,2355.1,0.803]
[1728004729110,4.24613,2355.1,2354.8,8.66308039]
[1728004729328,4.24591,2355.3,2354.8,8.66308039]
[1728004729329,4.24591,2355.3,2354.8,8.2756]
[1728004729504,4.24591,2355.3,2354.8,12.94854]
[1728004729807,8.49177,2355.3,2354.8,8.7019]
[1728004730133,4.24624,2355.1,2354.8,8.7019]
[1728004730347,4.24624,2355.1,2354.8,8.2756]
[1728004730348,4.24629,2355.0,2354.8,8.2756]
[1728004730529,4.24624,2355.1,2354.8,8.2756]
[1728004730690,4.24624,2355.1,2354.8,0.8156]
[1728004730895,4.24593,2355.2,2354.8,0.8156]
[1728004732135,4.24614,2355.1,2354.8,0.8156]
[1728004732336,4.24549,2355.5,2354.8,1.2419]
[1728004732536,4.24549,2355.5,2355.0,4.24625]
[1728004732850,4.24549,2355.5,2355.1,0.8156]
[1728004733334,4.24558,2355.4,2355.1,0.8156]
[1728004735311,4.24549,2355.5,2355.1,0.8156]
[1728004735312,4.24549,2355.5,2355.1,1.23979]
[1728004737147,0.8152,2355.8,2355.1,0.8156]
[1728004737436,4.24551,2355.5,2355.1,0.8156]
[1728004740420,4.24575,2355.3,2355.1,0.8156]
[1728004740826,4.24575,2355.3,2354.8,1.6996528]
[1728004741135,4.24575,2355.3,2354.8,0.8156]
[1728004741310,4.24575,2355.3,2354.8,5.1305728]
[1728004741512,4.24575,2355.3,2354.9,1.6996528]
[1728004741923,4.24575,2355.3,2354.9,2.21087202]
[1728004742125,4.24575,2355.3,2354.9,1.6996528]
[1728004742325,4.2462,2355.1,2354.8,3.8840528]
[1728004742520,4.24585,2355.3,2354.8,1.6996528]
[1728004742722,4.25222474,2356.3,2354.8,1.6996528]
[1728004742723,4.24549,2355.5,2354.9,0.8156]
[1728004742942,4.24549,2355.5,2354.9,5.1259528]
[1728004742943,4.24574,2355.3,2354.9,5.1259528]
[1728004743155,4.24574,2355.3,2355.0,0.8840528]
[1728004743913,8.49103,2355.5,2355.0,0.8840528]
[1728004744212,4.24557,2355.4,2355.1,0.8277]
[1728004744448,4.24562,2355.4,2355.1,0.8277]
[1728004745013,4.24548,2355.5,2355.1,1.254]
[1728004745231,4.24548,2355.5,2355.2,0.93841728]
[1728004745528,4.24584,2355.3,2355.1,0.8277]
[1728004746360,4.24549,2355.5,2355.1,0.8277]
[1728004747270,4.24549,2355.5,2355.1,5.1380528]
[1728004747469,4.24549,2355.5,2355.1,1.254]
[1728004747971,4.24523,2355.6,2355.1,6.3840428]
[1728004748271,4.24523,2355.6,2355.2,1.0710122]
[1728004748860,4.24523,2355.6,2355.2,4.0710122]
[1728004749223,5.06245,2355.8,2355.3,0.8277]
[1728004749863,8.48992,2355.8,2355.3,0.8277]
[1728004750067,4.24495,2355.8,2355.4,1.0028675]
[1728004750220,0.8175,2356.0,2355.4,1.0028675]
[1728004750420,7.4278821,2356.4,2355.6,0.8277]
[1728004750421,5.06172,2356.2,2355.6,0.8277]
[1728004750668,4.24422,2356.2,2355.7,0.08489421]
[1728004750824,12.4892421,2356.4,2355.8,0.8277]
[1728004751020,0.1178821,2356.4,2355.9,0.98467442]
[1728004751285,4.24412,2356.2,2355.9,0.98467442]
[1728004751625,8.48837,2356.2,2355.9,0.98467442]
[1728004751930,4.24397,2356.3,2355.9,0.4263]
[1728004752132,4.24412,2356.2,2355.9,0.4263]
[1728004752439,0.1178821,2356.4,2356.1,0.8277]
[1728004754055,0.1178821,2356.4,2356.1,1.254]
[1728004754254,0.1178821,2356.4,2356.2,0.549847]
[1728004754458,0.1178821,2356.4,2356.3,3.8277]
[1728004754671,0.1178821,2356.4,2356.3,4.33886735]
[1728004756240,0.1178821,2356.4,2356.3,8.58280735]
[1728004756556,0.1178821,2356.4,2356.3,8.49794]
[1728004756752,0.1178821,2356.4,2356.3,10.3771197]
[1728004765397,0.1178821,2356.4,2356.3,5.5831797]